fUSD/lending_fUSD_20250522
["ID","MTS","AMOUNT","RATE_DAILY","PERIOD"]
[362021797,1747937468622,-420.0,0.00036708,5]
[362021799,1747937468631,-471.63,0.00036708,5]
[362021801,1747937468640,-420.0,0.00036708,5]
[362021803,1747937468650,-308.39532648,0.00036708,5]
[362021805,1747937468659,-420.0,0.00036708,5]
[362021807,1747937468668,-420.0,0.00036708,5]
[362021809,1747937468678,-244.51766365,0.00036708,5]
[362021811,1747937468687,-420.0,0.00036708,5]
[362021813,1747937468697,-588.31,0.00036708,5]
[362021815,1747937468706,-406.55342398,0.00036708,5]
[362021817,1747937468716,-420.0,0.00036708,5]
[362021819,1747937468725,-420.0,0.00036708,5]
[362021821,1747937468734,-420.0,0.00036708,5]
[362021823,1747937468743,-420.0,0.00036708,5]
[362021825,1747937468755,-420.0,0.00036708,5]
[362021827,1747937468765,-420.0,0.00036708,5]
[362021829,1747937468775,-420.0,0.00036708,5]
[362021831,1747937468784,-420.0,0.00036708,5]
[362021833,1747937468794,-420.0,0.00036708,5]
[362021835,1747937468803,-420.0,0.00036708,5]
[362021837,1747937468813,-420.0,0.00036708,5]
[362021838,1747937468822,-534.52068569,0.00036708,5]
[362021839,1747937468831,-420.0,0.00036708,5]
[362021840,1747937468841,-420.0,0.00036708,5]
[362021841,1747937468851,-420.0,0.00036708,5]
[362021842,1747937468860,-420.0,0.00036708,5]
[362021843,1747937468869,-1000.0,0.00036708,2]
[362021844,1747937468878,-420.0,0.00036708,5]
[362021845,1747937468888,-7658.46,0.00036708,5]
[362021846,1747937468898,-420.0,0.00036708,5]
[362021847,1747937468907,-518.64,0.00036708,5]
[362021848,1747937468916,-420.0,0.00036708,5]
[362021849,1747937468927,-420.0,0.00036708,5]
[362021851,1747937468937,-420.0,0.00036708,5]
[362021853,1747937468946,-420.0,0.00036708,5]
[362021854,1747937468955,-420.0,0.00036708,5]
[362021856,1747937468965,-420.0,0.00036708,5]
[362021858,1747937468977,-1061.71,0.00036708,5]
[362021860,1747937468987,-420.0,0.00036708,5]
[362021862,1747937468996,-420.0,0.00036708,5]
[362021864,1747937469006,-420.0,0.00036708,5]
[362021866,1747937469016,-167.06327276,0.00036708,5]
[362021868,1747937469025,-537.85,0.00036708,5]
[362021870,1747937469035,-420.0,0.00036708,5]
[362021872,1747937469045,-566.93099019,0.00036708,5]
[362021875,1747937469056,-420.0,0.00036708,5]
[362021877,1747937469066,-1577.75,0.00036708,5]
[362021879,1747937469076,-420.0,0.00036708,5]
[362021881,1747937469085,-187.23822132,0.00036708,5]
[362021883,1747937469095,-1079.12,0.00036708,5]
[362021885,1747937469105,-420.0,0.00036708,5]
[362021887,1747937469115,-420.0,0.00036708,5]
[362021889,1747937469126,-831.61,0.00036708,5]
[362021891,1747937469136,-544.26969928,0.00036708,5]
[362021893,1747937469145,-2312.37,0.00036708,5]
[362021895,1747937469154,-611.84,0.00036708,5]
[362021897,1747937469164,-301.14075965,0.00036708,5]
[362021899,1747937469173,-420.0,0.00036708,5]
[362021901,1747937469183,-420.0,0.00036708,5]
[362021903,1747937469192,-722.99,0.00036708,5]
[362021905,1747937469201,-420.0,0.00036708,5]
[362021907,1747937469211,-420.0,0.00036708,5]
[362021909,1747937469220,-1357.38,0.00036708,5]
[362021911,1747937469230,-420.0,0.00036708,5]
[362021913,1747937469239,-150.812497,0.00036709,5]
[362021915,1747937469248,-420.0,0.00036709,5]
[362021916,1747937469258,-605.09,0.00036709,5]
[362021918,1747937469267,-460.61,0.00036709,5]
[362021921,1747937469278,-420.0,0.00036709,5]
[362021923,1747937469287,-4093.55,0.00036709,5]
[362021924,1747937469296,-420.0,0.00036709,5]
[362021926,1747937469305,-420.0,0.00036709,5]
[362021928,1747937469315,-420.0,0.00036709,5]
[362021930,1747937469325,-614.93,0.00036709,5]
[362021932,1747937469334,-529.75,0.00036709,5]
[362021935,1747937469345,-460.73,0.00036709,5]
[362021937,1747937469354,-421.75,0.00036709,5]
[362021938,1747937469363,-391.90659584,0.00036709,5]
[362021940,1747937469372,-420.0,0.00036709,5]
[362021943,1747937469383,-840.64,0.00036709,5]
[362021945,1747937469392,-420.0,0.00036709,5]
[362021947,1747937469402,-420.0,0.00036709,5]
[362021949,1747937469412,-451.26,0.00036709,5]
[362021951,1747937469421,-420.0,0.00036709,5]
[362021953,1747937469431,-1689.02,0.00036709,5]
[362021955,1747937469440,-420.0,0.00036709,5]
[362021957,1747937469449,-420.0,0.00036709,5]
[362021959,1747937469458,-420.0,0.00036709,5]
[362021961,1747937469468,-671.16,0.00036709,5]
[362021963,1747937469477,-420.0,0.00036709,5]
[362021965,1747937469486,-420.0,0.00036709,5]
[362021967,1747937469496,-420.0,0.00036709,5]
[362021968,1747937469505,-420.0,0.00036709,5]
[362021970,1747937469515,-421.39,0.00036709,5]
[362021972,1747937469524,-420.0,0.00036709,5]
[362021974,1747937469534,-1814.1,0.00036709,5]
[362021976,1747937469543,-420.0,0.00036709,5]
[362021978,1747937469553,-420.0,0.0003671,5]
[362021980,1747937469562,-420.0,0.0003671,5]
[362021982,1747937469571,-420.0,0.0003671,5]
[362021984,1747937469580,-420.0,0.0003671,5]
[362021986,1747937469589,-420.0,0.0003671,5]
[362021988,1747937469599,-420.0,0.0003671,5]
[362021990,1747937469608,-420.0,0.0003671,5]
[362021992,1747937469617,-253.07229102,0.0003671,5]
[362021994,1747937469627,-420.0,0.0003671,5]
[362021996,1747937469636,-420.0,0.0003671,5]
[362021998,1747937469645,-420.0,0.0003671,5]
[362022000,1747937469654,-420.0,0.0003671,5]
[362022002,1747937469663,-420.0,0.0003671,5]
[362022004,1747937469673,-420.0,0.0003671,5]
[362022006,1747937469682,-203.827406,0.0003671,7]
[362022008,1747937469691,-420.0,0.0003671,5]
[362022010,1747937469701,-420.0,0.0003671,5]
[362022012,1747937469710,-529.08,0.0003671,5]
[362022014,1747937469720,-498.24906795,0.0003671,5]
[362022016,1747937469729,-420.0,0.0003671,5]
[362022018,1747937469738,-420.0,0.0003671,5]
[362022020,1747937469749,-420.0,0.00036712,14]
[362022022,1747937469759,-174.052213,0.00036748,120]
[362022024,1747937469769,-231.28369723,0.00036787,2]
[362022026,1747937469778,-10005.29057609,0.000368,30]
[362022028,1747937469787,-193.8439291,0.0003685,15]
[362022030,1747937469797,-7000.0,0.0003688,120]
[362022032,1747937469807,-160.0,0.000369,19]
[362022034,1747937469816,-2000.0,0.000369,14]
[362022036,1747937469825,-2000.0,0.000369,14]
[362022038,1747937469834,-2000.0,0.000369,14]
[362022040,1747937469844,-2000.0,0.000369,14]
[362022042,1747937469854,-2000.0,0.000369,14]
[362022044,1747937469863,-2000.0,0.000369,14]
[362022046,1747937469873,-2000.0,0.000369,14]
[362022048,1747937469883,-2000.0,0.000369,14]
[362022050,1747937469892,-2000.0,0.000369,14]
[362022052,1747937469903,-2000.0,0.000369,14]
[362022054,1747937469912,-2000.0,0.000369,14]
[362022056,1747937469922,-2000.0,0.000369,14]
[362022058,1747937469932,-2000.0,0.000369,14]
[362022060,1747937469941,-2000.0,0.000369,14]
[362022062,1747937469951,-2000.0,0.000369,14]
[362022064,1747937469961,-2000.0,0.000369,14]
[362022066,1747937469974,-2000.0,0.000369,14]
[362022068,1747937469985,-2000.0,0.000369,14]
[362022070,1747937469994,-2000.0,0.000369,14]
[362022072,1747937470004,-2000.0,0.000369,14]
[362022074,1747937470015,-2000.0,0.000369,14]
[362022076,1747937470024,-2000.0,0.000369,14]
[362022078,1747937470034,-2000.0,0.000369,14]
[362022080,1747937470043,-1726.85691645,0.000369,14]
[362022082,1747937470054,-367.8127037,0.000369,30]
[362022084,1747937470063,-20000.0,0.000369,120]
[362022086,1747937470073,-151.0,0.000369,7]
[362022088,1747937470082,-200.28725259,0.000369,35]
[362022090,1747937470093,-151.0,0.00036914,7]
[362022092,1747937470102,-36616.5319182,0.00036933,2]
[362022094,1747937470112,-7522.7836896,0.00036958,2]
[362022096,1747937470121,-24282.2656107,0.00036958,2]
[362022098,1747937470131,-500.0,0.00036959,7]
[362022100,1747937470140,-635.62,0.00036981,5]
[362022102,1747937470149,-420.0,0.00036981,5]
[362022104,1747937470159,-420.0,0.00036981,5]
[362022106,1747937470168,-420.0,0.00036981,5]
[362022108,1747937470177,-420.0,0.00036981,5]
[362022110,1747937470186,-420.0,0.00036981,5]
[362022112,1747937470196,-420.0,0.00036981,5]
[362022114,1747937470207,-420.0,0.00036981,5]
[362022116,1747937470217,-3537.06,0.00036981,2]
[362022118,1747937470227,-420.0,0.00036981,5]
[362022120,1747937470236,-420.0,0.00036981,5]
[362022122,1747937470246,-420.0,0.00036981,5]
[362022124,1747937470256,-420.0,0.00036982,5]
[362022126,1747937470265,-420.0,0.00036982,5]
[362022128,1747937470274,-420.0,0.00036982,5]
[362022130,1747937470284,-420.0,0.00036982,5]
[362022132,1747937470294,-420.0,0.00036982,5]
[362022134,1747937470303,-172.03346214,0.00036982,5]
[362022135,1747937470312,-471.63,0.00036982,5]
[362022137,1747937470322,-420.0,0.00036982,5]
[362022139,1747937470331,-420.0,0.00036982,5]
[362022141,1747937470340,-420.0,0.00036982,5]
[362022143,1747937470350,-155.76159949,0.00036982,5]
[362022145,1747937470360,-588.31,0.00036982,5]
[362022147,1747937470370,-362.71489169,0.00036982,5]
[362022149,1747937470379,-420.0,0.00036982,5]
[362022151,1747937470388,-187.3790806,0.00036982,5]
[362022153,1747937470398,-420.0,0.00036982,5]
[362022155,1747937470407,-420.0,0.00036982,5]
[362022157,1747937470417,-201.94090956,0.00036982,5]
[362022159,1747937470426,-544.04155411,0.00036982,5]
[362022161,1747937470435,-420.0,0.00036982,5]
[362022163,1747937470445,-420.0,0.00036982,5]
[362022165,1747937470454,-420.0,0.00036982,5]
[362022167,1747937470463,-420.0,0.00036982,5]
[362022169,1747937470473,-420.0,0.00036982,5]
[362022171,1747937470484,-420.0,0.00036982,5]
[362022173,1747937470493,-420.0,0.00036982,5]
[362022175,1747937470505,-420.0,0.00036982,5]
[362022177,1747937470514,-1000.0,0.00036982,2]
[362022179,1747937470523,-420.0,0.00036982,5]
[362022181,1747937470532,-7658.46,0.00036982,5]
[362022183,1747937470542,-420.0,0.00036982,5]
[362022185,1747937470552,-518.64,0.00036982,5]
[362022187,1747937470561,-420.0,0.00036982,5]
[362022189,1747937470571,-420.0,0.00036982,5]
[362022191,1747937470581,-420.0,0.00036982,5]
[362022193,1747937470590,-317.54745971,0.00036982,5]
[362022195,1747937470601,-420.0,0.00036982,5]
[362022197,1747937470610,-420.0,0.00036982,5]
[362022199,1747937470619,-1061.71,0.00036982,5]
[362022201,1747937470628,-420.0,0.00036982,5]
[362022203,1747937470637,-423.58265845,0.00036982,5]
[362022205,1747937470647,-420.0,0.00036982,5]
[362022207,1747937470656,-537.85,0.00036982,5]
[362022209,1747937470667,-420.0,0.00036982,5]
[362022211,1747937470676,-420.0,0.00036982,5]
[362022213,1747937470686,-1577.75,0.00036982,5]
[362022215,1747937470695,-420.0,0.00036982,5]
[362022217,1747937470705,-1079.12,0.00036982,5]
[362022219,1747937470715,-420.0,0.00036982,5]
[362022222,1747937470725,-420.0,0.00036982,5]
[362022224,1747937470734,-831.61,0.00036982,5]
[362022226,1747937470744,-2312.37,0.00036982,5]
[362022228,1747937470756,-611.84,0.00036982,5]
[362022230,1747937470765,-420.0,0.00036982,5]
[362022232,1747937470775,-234.66,0.00036982,5]
[362022234,1747937470784,-722.99,0.00036982,5]
[362022236,1747937470793,-420.0,0.00036982,5]
[362022238,1747937470802,-420.0,0.00036982,5]
[362022240,1747937470811,-1357.38,0.00036982,5]
[362022242,1747937470821,-420.0,0.00036982,5]
[362022244,1747937470830,-420.0,0.00036983,5]
[362022246,1747937470840,-605.09,0.00036983,5]
[362022248,1747937470850,-460.61,0.00036983,5]
[362022257,1747937470925,-420.0,0.00036983,5]
[362022259,1747937470934,-4093.55,0.00036983,5]
[362022260,1747937470943,-291.27307942,0.00036983,5]
[362022262,1747937470952,-420.0,0.00036983,5]
[362022263,1747937470962,-420.0,0.00036983,5]
[362022264,1747937470973,-614.93,0.00036983,5]
[362022265,1747937470984,-529.75,0.00036983,5]
[362022266,1747937470994,-460.73,0.00036983,5]
[362022267,1747937471005,-421.75,0.00036983,5]
[362022268,1747937471015,-420.0,0.00036983,5]
[362022269,1747937471026,-840.64,0.00036983,5]
[362022270,1747937471035,-420.0,0.00036983,5]
[362022271,1747937471047,-420.0,0.00036983,5]
[362022272,1747937471057,-451.26,0.00036983,5]
[362022274,1747937471067,-420.0,0.00036983,5]
[362022275,1747937471077,-1689.02,0.00036983,5]
[362022276,1747937471086,-420.0,0.00036983,5]
[362022278,1747937471095,-420.0,0.00036983,5]
[362022280,1747937471105,-420.0,0.00036983,5]
[362022282,1747937471115,-671.16,0.00036983,5]
[362022284,1747937471125,-420.0,0.00036983,5]
[362022286,1747937471134,-420.0,0.00036983,5]
[362022288,1747937471143,-420.0,0.00036983,5]
[362022290,1747937471152,-420.0,0.00036983,5]
[362022292,1747937471162,-421.39,0.00036983,5]
[362022294,1747937471172,-420.0,0.00036983,5]
[362022296,1747937471182,-1814.1,0.00036983,5]
[362022298,1747937471191,-301.13165354,0.00036983,5]
[362022300,1747937471200,-420.0,0.00036984,5]
[362022302,1747937471210,-420.0,0.00036984,5]
[362022304,1747937471219,-487.01111987,0.00036984,5]
[362022306,1747937471228,-420.0,0.00036984,5]
[362022308,1747937471238,-420.0,0.00036984,5]
[362022310,1747937471247,-420.0,0.00036984,5]
[362022312,1747937471257,-420.0,0.00036984,5]
[362022314,1747937471266,-420.0,0.00036984,5]
[362022316,1747937471275,-420.0,0.00036984,5]
[362022318,1747937471284,-420.0,0.00036984,5]
[362022320,1747937471293,-434.74713655,0.00036984,5]
[362022322,1747937471302,-324.60753856,0.00036984,5]
[362022324,1747937471312,-420.0,0.00036984,5]
[362022326,1747937471321,-420.0,0.00036984,5]
[362022328,1747937471330,-420.0,0.00036984,5]
[362022330,1747937471340,-529.08,0.00036984,5]
[362022332,1747937471349,-420.0,0.00036984,5]
[362022334,1747937471358,-420.0,0.00036984,5]
[362022336,1747937471368,-5000.29703273,0.00036985,30]
[362022338,1747937471377,-420.0,0.00036986,14]
[362022340,1747937471386,-150.0,0.00036986,2]
[362022342,1747937471395,-150.0,0.00036986,2]
[362022343,1747937471404,-150.0,0.00036986,2]
[362022345,1747937471415,-150.0,0.00036986,2]
[362022347,1747937471423,-150.0,0.00036986,2]
[362022349,1747937471432,-151.33,0.00036986,2]
[362022351,1747937471442,-900.0,0.00037,38]
[362022353,1747937471451,-1568.0,0.00037,120]
[362022355,1747937471461,-416.26,0.00037,2]
[362022357,1747937471470,-4043.46,0.00037,2]
[362022359,1747937471480,-1000.0,0.00037,2]
[362022361,1747937471490,-228.48826607,0.00037024,2]
[362022363,1747937471499,-1581.17550025,0.00037052,2]
[362022365,1747937471509,-1600.0,0.00037053,7]
[362022367,1747937471518,-8594.29,0.00037067,2]
[362022369,1747937471527,-150.99,0.00037067,2]
[362022371,1747937471536,-4344.49,0.00037067,2]
[362022373,1747937471545,-655.52,0.00037067,2]
[362022375,1747937471554,-500.0,0.00037127,7]
[362022377,1747937471564,-1000.0,0.00037127,2]
[362022379,1747937471573,-5174.48306721,0.00037143,2]
[362022381,1747937471583,-165.052213,0.00037148,120]
[362022383,1747937471592,-1202.37729,0.0003715,2]
[362022385,1747937471601,-171.45,0.000372,14]
[362022387,1747937471610,-210.5912077,0.000372,120]
[362022389,1747937471619,-501.16211184,0.00037201,2]
[362022391,1747937471629,-211.0,0.0003721,2]
[362022393,1747937471638,-635.62,0.00037255,5]
[362022395,1747937471647,-420.0,0.00037255,5]
[362022397,1747937471656,-420.0,0.00037255,5]
[362022399,1747937471666,-420.0,0.00037255,5]
[362022401,1747937471676,-420.0,0.00037255,5]
[362022403,1747937471685,-420.0,0.00037255,5]
[362022404,1747937471694,-420.0,0.00037255,5]
[362022406,1747937471704,-420.0,0.00037255,5]
[362022409,1747937471714,-3537.06,0.00037255,2]
[362022410,1747937471723,-420.0,0.00037255,5]
[362022412,1747937471733,-420.0,0.00037255,5]
[362022414,1747937471742,-420.0,0.00037255,5]
[362022416,1747937471752,-419.10620282,0.00037256,5]
[362022418,1747937471761,-360.74915749,0.00037256,5]
[362022420,1747937471771,-387.8165153,0.00037256,5]
[362022422,1747937471780,-558.09378436,0.00037256,5]
[362022424,1747937471789,-420.0,0.00037256,5]
[362022426,1747937471799,-471.63,0.00037256,5]
[362022428,1747937471808,-420.0,0.00037256,5]
[362022430,1747937471817,-420.0,0.00037256,5]
[362022432,1747937471826,-420.0,0.00037256,5]
[362022434,1747937471836,-588.31,0.00037256,5]
[362022436,1747937471845,-420.0,0.00037256,5]
[362022438,1747937471854,-420.0,0.00037256,5]
[362022440,1747937471864,-420.0,0.00037256,5]
[362022442,1747937471873,-263.1263528,0.00037256,5]
[362022444,1747937471883,-420.0,0.00037256,5]
[362022446,1747937471893,-420.0,0.00037256,5]
[362022448,1747937471903,-420.0,0.00037256,5]
[362022450,1747937471912,-420.0,0.00037256,5]
[362022452,1747937471922,-420.0,0.00037256,5]
[362022454,1747937471931,-437.02858188,0.00037256,5]
[362022456,1747937471940,-420.0,0.00037256,5]
[362022458,1747937471949,-1031.37017855,0.00037256,2]
[362022460,1747937471960,-420.0,0.00037256,5]
[362022462,1747937471971,-7658.46,0.00037256,5]
[362022464,1747937471981,-436.1208799,0.00037256,5]
[362022466,1747937471991,-518.64,0.00037256,5]
[362022468,1747937472001,-420.0,0.00037256,5]
[362022469,1747937472011,-420.0,0.00037256,5]
[362022471,1747937472020,-420.0,0.00037256,5]
[362022473,1747937472029,-420.0,0.00037256,5]
[362022475,1747937472038,-420.0,0.00037256,5]
[362022477,1747937472048,-1061.71,0.00037256,5]
[362022479,1747937472058,-420.0,0.00037256,5]
[362022481,1747937472066,-420.0,0.00037256,5]
[362022483,1747937472076,-537.85,0.00037256,5]
[362022485,1747937472085,-460.39214766,0.00037256,5]
[362022487,1747937472095,-420.0,0.00037256,5]
[362022489,1747937472105,-1577.75,0.00037256,5]
[362022491,1747937472114,-420.0,0.00037256,5]
[362022493,1747937472124,-1079.12,0.00037256,5]
[362022495,1747937472133,-420.0,0.00037256,5]
[362022497,1747937472142,-420.0,0.00037256,5]
[362022499,1747937472151,-831.61,0.00037256,5]
[362022501,1747937472160,-2312.37,0.00037256,5]
[362022503,1747937472170,-611.84,0.00037256,5]
[362022505,1747937472179,-420.0,0.00037256,5]
[362022507,1747937472188,-722.99,0.00037256,5]
[362022509,1747937472197,-420.0,0.00037256,5]
[362022511,1747937472206,-420.0,0.00037256,5]
[362022513,1747937472215,-1357.38,0.00037256,5]
[362022515,1747937472225,-420.0,0.00037256,5]
[362022517,1747937472234,-420.0,0.00037257,5]
[362022519,1747937472243,-605.09,0.00037257,5]
[362022521,1747937472253,-460.61,0.00037257,5]
[362022523,1747937472262,-221.72189105,0.00037257,5]
[362022525,1747937472271,-355.07066403,0.00037257,5]
[362022543,1747937472440,-3738.47933597,0.00037257,5]
[362022545,1747937472450,-420.0,0.00037257,5]
[362022547,1747937472460,-420.0,0.00037257,5]
[362022549,1747937472469,-493.3908935,0.00037257,5]
[362022580,1747937472758,-460.73,0.00037257,5]
[362022582,1747937472767,-529.75,0.00037257,5]
[362022584,1747937472777,-133.57551,0.00037257,5]
[362022603,1747937472994,-420.0,0.00037257,5]
[362022604,1747937473003,-840.64,0.00037257,5]
[362022605,1747937473015,-420.0,0.00037257,5]
[362022606,1747937473024,-317.1531436,0.00037257,5]
[362022607,1747937473036,-102.8468564,0.00037257,5]
[362022608,1747937473045,-451.26,0.00037257,5]
[362022609,1747937473056,-332.6131436,0.00037257,5]
[362022610,1747937473067,-87.3868564,0.00037257,5]
[362022611,1747937473076,-1689.02,0.00037257,5]
[362022612,1747937473085,-420.0,0.00037257,5]
[362022614,1747937473094,-420.0,0.00037257,5]
[362022616,1747937473104,-420.0,0.00037257,5]
[362022618,1747937473113,-671.16,0.00037257,5]
[362022620,1747937473122,-420.0,0.00037257,5]
[362022622,1747937473131,-420.0,0.00037257,5]
[362022624,1747937473140,-420.0,0.00037257,5]
[362022626,1747937473150,-420.0,0.00037257,5]
[362022628,1747937473159,-421.39,0.00037257,5]
[362022630,1747937473168,-420.0,0.00037257,5]
[362022632,1747937473177,-1814.1,0.00037257,5]
[362022634,1747937473186,-420.0,0.00037258,5]
[362022636,1747937473194,-420.0,0.00037258,5]
[362022638,1747937473204,-420.0,0.00037258,5]
[362022639,1747937473213,-420.0,0.00037258,5]
[362022641,1747937473222,-420.0,0.00037258,5]
[362022643,1747937473232,-420.0,0.00037258,5]
[362022645,1747937473241,-420.0,0.00037258,5]
[362022647,1747937473251,-420.0,0.00037258,5]
[362022649,1747937473260,-420.0,0.00037258,5]
[362022651,1747937473269,-420.0,0.00037258,5]
[362022653,1747937473278,-420.0,0.00037258,5]
[362022655,1747937473287,-420.0,0.00037258,5]
[362022657,1747937473297,-529.08,0.00037258,5]
[362022659,1747937473306,-420.0,0.00037258,5]
[362022661,1747937473315,-420.0,0.00037258,5]
[362022663,1747937473325,-217.56348966,0.00037259,7]
[362022665,1747937473336,-420.0,0.0003726,14]
[362022667,1747937473346,-210.0,0.0003726,2]
[362022669,1747937473355,-210.0,0.0003726,30]
[362022671,1747937473364,-500.0,0.00037283,7]
[362022673,1747937473373,-1000.0,0.000373,2]
[362022675,1747937473382,-500.0,0.00037334,7]
[362022677,1747937473392,-5559.35539691,0.00037352,2]
[362022679,1747937473401,-500.0,0.00037353,7]
[362022681,1747937473410,-500.0,0.0003737,2]
[362022683,1747937473419,-1630.83123243,0.000374,14]
[362022685,1747937473430,-6691.338,0.000374,14]
[362022687,1747937473442,-3219.87076757,0.000374,14]
[362022689,1747937473451,-300.0,0.0003747,2]
[362022691,1747937473460,-400.0,0.0003747,2]
[362022693,1747937473469,-1600.0,0.00037474,7]
[362022695,1747937473477,-500.0,0.000375,120]
[362022697,1747937473487,-1000.0,0.000375,2]
[362022699,1747937473496,-1000.0,0.000375,2]
[362022701,1747937473505,-635.62,0.00037529,5]
[362022702,1747937473514,-420.0,0.00037529,5]
[362022704,1747937473523,-420.0,0.00037529,5]
[362022706,1747937473533,-420.0,0.00037529,5]
[362022708,1747937473542,-420.0,0.00037529,5]
[362022710,1747937473552,-420.0,0.00037529,5]
[362022712,1747937473561,-420.0,0.00037529,5]
[362022714,1747937473570,-420.0,0.00037529,5]
[362022716,1747937473579,-1592.64753244,0.00037529,2]
[362022718,1747937473590,-1944.41246756,0.00037529,2]
[362022720,1747937473600,-420.0,0.00037529,5]
[362022722,1747937473610,-13.50066667,0.00037529,5]
[362023363,1747938308258,109766.30201394,0.00017,2]
[362023364,1747938308285,129806.46,0.00017,2]
[362023365,1747938308309,129806.46,0.00017,2]
[362023366,1747938308331,129806.46,0.00017,2]
[362023367,1747938343097,-250.0,0.00015,2]
[362023368,1747938343118,-300.0,0.00016999,2]
[362023369,1747938343142,-102.7889264,0.00017,2]
[362023370,1747938351086,-416.84180527,0.00017,2]
[362023373,1747938437093,-676.902866,0.00016915,2]
[362023374,1747938437115,-300.0,0.00016972,2]
[362023375,1747938437134,-500.0,0.00016973,2]
[362023376,1747938437154,-348.14329467,0.00016973,2]
[362023377,1747938437174,-500.0,0.00016973,2]
[362023378,1747938437194,-500.0,0.00016973,2]
[362023379,1747938437214,-500.0,0.00016973,2]
[362023380,1747938437235,-500.0,0.00016973,2]
[362023381,1747938437255,-500.35367689,0.00016973,2]
[362023382,1747938437281,-263.09426492,0.00016999,2]
[362023383,1747938437304,-27038.76752969,0.00017,2]
[362023384,1747938441102,-8027.20279131,0.00017,2]
[362023385,1747938442115,-228.06905527,0.000169,2]
[362023386,1747938442138,-398541.03793925,0.00017,2]
[362023390,1747938451072,-548.4626559,0.00017,2]
[362023391,1747938454092,-153.85347201,0.00017,2]
[362023403,1747938548069,-408.57440289,0.000169,2]
[362023404,1747938548238,-1693.05779428,0.000169,2]
[362023405,1747938551073,-3614.39089477,0.000169,2]
[362023406,1747938551094,-300.0,0.00016999,2]
[362023407,1747938551116,-63827.75530045,0.00017,2]
[362023408,1747938562074,-21048.05570895,0.00017,2]
[362023409,1747938565071,-4874.97866663,0.00017,2]
[362023413,1747938573078,-85008.74280149,0.00017,2]
[362023428,1747938631415,-155.07514328,0.000169,2]
[362023431,1747938631426,-198.47658621,0.000169,2]
[362023438,1747938631471,-300.0,0.000169,2]
[362023439,1747938631482,-413.49115775,0.000169,2]
[362023440,1747938631528,-352.97265624,0.000169,2]
[362023441,1747938631538,-500.0,0.00016973,2]
[362023442,1747938631549,-526.35503197,0.00016973,2]
[362023443,1747938631558,-64.22231179,0.00017,2]
[362023444,1747938631584,-326.29134845,0.00017,2]
[362023445,1747938631641,-1456.93152878,0.00017,2]
[362023446,1747938631747,-62698.12288521,0.00017,2]
[362023447,1747938631763,-11205.39055947,0.00017,2]
[362023448,1747938631807,-441.681,0.00017,2]
[362023953,1747938637463,-199.5604233,0.000169,2]
[362023955,1747938637473,-300.0,0.00016999,2]
[362023957,1747938637483,-581668.7812132,0.00017,2]
[362023958,1747938637492,-300.0,0.00017,2]
[362023961,1747938637503,-250.0,0.000187,2]
[362023962,1747938637512,-250.0,0.000187,2]